bitfinex/quotes_ETHUSD_20250517
["timestamp","ask_amount","ask_price","bid_price","bid_amount"]
[1747455919436,3.99178639,2505.2,2504.9,0.55]
[1747455919649,3.99217259,2505.0,2504.8,25.016]
[1747455920032,3.99217259,2505.0,2504.8,17.244]
[1747455920202,3.99217259,2505.0,2504.9,7.772]
[1747455922632,3.99217259,2505.0,2504.8,17.244]
[1747455922633,3.99217533,2504.9,2504.8,17.794]
[1747455922935,3.99217533,2504.9,2504.8,25.015]
[1747455924133,0.8264,2505.4,2504.8,25.015]
[1747455924432,3.99186079,2505.1,2504.8,25.015]
[1747455924637,3.99186079,2505.1,2504.8,27.59644]
[1747455924822,3.99186079,2505.1,2504.9,0.37976567]
[1747455925847,3.99201596,2505.0,2504.9,0.37976567]
[1747455926034,3.9919399,2505.1,2504.9,0.37976567]
[1747455926908,3.99201596,2505.0,2504.9,0.37976567]
[1747455927741,3.99201596,2505.0,2504.9,8.15076567]
[1747455927914,5.56580584,2505.0,2504.9,0.37976567]
[1747455928239,5.56580584,2505.0,2504.9,8.15076567]
[1747455928646,4.76741596,2505.0,2504.9,8.15076567]
[1747455928805,5.13898363,2505.0,2504.9,8.15076567]
[1747455929001,5.13898363,2505.0,2504.9,7.771]
[1747455929440,4.36358363,2505.0,2504.9,7.771]
[1747455929649,3.99201596,2505.0,2504.9,7.771]
[1747455931441,3.99201596,2505.0,2504.9,10.34752]
[1747455931647,3.99201596,2505.0,2504.9,10.72823828]
[1747455932132,3.99194547,2505.1,2504.9,10.72823828]
[1747455933644,3.99194547,2505.1,2505.0,0.85833507]
[1747455934243,4.36435358,2505.1,2505.0,0.85833507]
[1747455936111,4.36435358,2505.1,2505.0,4.05935082]
[1747455936112,0.37240811,2505.1,2505.0,4.05935082]
[1747455936351,0.37240811,2505.1,2505.0,3.58173403]
[1747455936840,3.99161362,2505.3,2505.1,0.55]
[1747455937651,3.99169726,2505.2,2505.1,0.55]
[1747455937821,0.37283293,2505.2,2505.1,0.93071828]
[1747455938023,0.37283293,2505.2,2505.1,1.71888917]
[1747455938546,0.37283293,2505.2,2505.1,9.48988917]
[1747455939542,3.99161394,2505.3,2505.1,9.48988917]
[1747455939918,3.99118403,2505.6,2505.3,0.55]
[1747455940150,3.99118403,2505.6,2505.3,0.58991051]
[1747455940453,11.78955212,2506.0,2505.3,0.58991051]
[1747455940454,3.99099076,2505.7,2505.3,0.58991051]
[1747455940615,0.37298546,2505.5,2505.4,1.08632565]
[1747455940815,0.37298546,2505.5,2505.4,0.93071828]
[1747455941434,3.99099076,2505.7,2505.5,0.55]
[1747455941635,3.99106002,2505.6,2505.5,0.55]
[1747455941840,3.99106002,2505.6,2505.5,8.348]
[1747455942514,0.37287377,2505.6,2505.5,8.348]
[1747455942720,0.37287377,2505.6,2505.5,10.59010872]
[1747455943332,0.37287377,2505.8,2505.5,10.59010872]
[1747455943766,0.37287377,2505.8,2505.7,0.55]
[1747455944051,0.37287377,2505.9,2505.7,0.55]
[1747455944259,0.37287377,2505.9,2505.8,24.88541198]
[1747455944427,0.37287377,2505.9,2505.8,27.62851198]
[1747455944618,0.37287377,2505.9,2505.8,19.83051198]
[1747455944819,0.37287377,2505.9,2505.8,27.62851198]
[1747455945068,3.99033375,2506.1,2505.8,27.62851198]
[1747455945272,0.37287377,2506.4,2505.9,0.55]
[1747455945439,3.99002562,2506.3,2506.1,0.55]
[1747455945639,3.99010454,2506.2,2506.1,0.55]
[1747455946250,4.36290453,2506.3,2506.1,0.55]
[1747455946455,4.36290453,2506.3,2506.1,0.58989848]
[1747455946669,4.36290453,2506.3,2506.1,0.55]
[1747455946866,3.99010454,2506.2,2506.1,0.55]
[1747455947066,4.36266411,2506.4,2506.1,0.55]
[1747455947260,3.99010454,2506.2,2506.1,0.55]
[1747455947460,3.99026375,2506.1,2506.0,0.47728667]
[1747455947784,3.99026375,2506.1,2506.0,8.27428667]
[1747455948789,3.99026375,2506.1,2506.0,8.17787483]
[1747455949077,3.99026375,2506.1,2506.0,8.17687483]
[1747455949378,3.99026375,2506.1,2506.0,0.38087483]
[1747455949379,4.75646375,2506.1,2506.0,0.38087483]
[1747455949579,5.63112291,2506.1,2506.0,8.17687483]
[1747455949875,13.63112291,2506.1,2506.0,8.17687483]
[1747455950083,13.63112291,2506.1,2506.0,7.796]
[1747455950587,6.0030975,2506.1,2506.0,7.796]
[1747455950760,12.91643834,2506.1,2506.0,7.796]
[1747455952285,5.12843834,2506.1,2506.0,7.796]
[1747455952504,3.99058222,2505.9,2505.8,17.238]
[1747455952797,4.75678222,2505.9,2505.8,17.238]
[1747455952954,4.75678222,2505.9,2505.8,25.034]
[1747455953276,6.067729,2505.9,2505.8,25.034]
[1747455953451,6.43970359,2505.9,2505.8,25.034]
[1747455956510,5.12875681,2505.9,2505.8,25.034]
[1747455956966,5.12875681,2505.9,2505.8,17.238]
[1747455957166,5.12875681,2505.9,2505.8,25.034]
[1747455959969,5.12875681,2505.9,2505.8,17.238]
[1747455960179,13.12875681,2505.9,2505.8,25.034]
[1747455960380,15.61877722,2505.9,2505.8,25.034]
[1747455960890,15.61877722,2505.9,2505.0,0.47728667]
[1747455961106,3.99185661,2505.1,2505.0,17.71328667]
[1747455961260,3.99185661,2505.1,2505.0,25.51028667]
[1747455962560,0.8167,2505.6,2505.1,0.55]
[1747455962768,3.99129137,2505.5,2505.2,0.8273]
[1747455963073,3.99137862,2505.4,2505.3,7.797]
[1747455963811,3.99137862,2505.4,2505.3,8.17840657]
[1747455964093,0.37247944,2505.5,2505.3,8.17840657]
[1747455964264,8.5877,2505.8,2505.3,8.17840657]
[1747455964265,0.37247944,2505.4,2505.3,9.4701523]
[1747455964467,0.37247944,2505.4,2505.3,10.2974523]
[1747455964893,0.37247944,2505.4,2505.3,14.28899023]
[1747455965102,0.37247944,2505.7,2505.3,14.28899023]
[1747455965297,0.37247944,2505.7,2505.4,1.97889902]
[1747455965500,3.99109177,2505.6,2505.5,7.797]
[1747455965704,3.99137862,2505.4,2505.3,0.38140657]
[1747455966000,3.99137862,2505.4,2505.3,8.17840657]
[1747455966805,4.36401698,2505.4,2505.3,8.17840657]
[1747455969409,4.36401698,2505.4,2505.3,7.797]
[1747455969776,12.13401698,2505.4,2505.3,7.797]
[1747455970110,4.36401698,2505.4,2505.3,7.797]
[1747455971677,3.99171383,2505.2,2505.0,18.0512]
[1747455971881,3.99171383,2505.2,2505.1,7.766]
[1747455972211,4.36425987,2505.3,2505.1,7.766]
[1747455972383,3.99169726,2505.2,2505.1,7.766]
[1747455972584,3.99169726,2505.2,2505.0,20.73581265]
[1747455972923,3.99169726,2505.2,2505.1,8.14742716]
[1747455975206,0.37260685,2505.2,2505.1,8.14742716]
[1747455975410,4.36430411,2505.2,2505.1,8.14742716]
[1747455976347,3.99169726,2505.2,2505.1,8.14742716]
[1747455976711,3.99169726,2505.2,2505.1,0.38142716]
[1747455976924,3.99169726,2505.2,2505.1,8.14742716]
[1747455977231,4.36430411,2505.2,2505.1,8.14742716]
[1747455981033,4.36430411,2505.2,2505.1,0.38142716]
[1747455981233,4.36430411,2505.2,2505.1,8.14742716]
[1747455983621,5.95429072,2505.2,2505.1,8.14742716]
[1747455984850,5.95429072,2505.2,2505.1,7.766]
[1747455985053,3.99185661,2505.1,2505.0,17.71292653]
[1747455985254,3.99185661,2505.1,2505.0,25.47992653]
[1747455986169,12.09246346,2505.1,2505.0,25.3852231]
[1747455986670,12.93730396,2505.1,2505.0,25.3852231]
[1747455987044,12.08946346,2505.1,2505.0,25.3852231]
[1747455990907,12.08946346,2505.1,2505.0,25.003]
[1747455991706,12.07246346,2505.1,2505.0,25.003]
[1747455992110,4.36446346,2505.1,2505.0,25.003]
[1747455992296,12.06946346,2505.1,2505.0,25.003]
[1747455993237,0.37260685,2505.1,2505.0,25.003]
[1747455993383,4.36446346,2505.1,2505.0,25.003]
[1747455993782,0.37260685,2505.1,2505.0,34.04073263]
[1747455994281,0.37260685,2505.1,2505.0,30.04871667]
[1747455994608,0.37260685,2505.4,2505.2,0.7943]
[1747455996119,3.99123668,2505.5,2505.3,8.6258571]
[1747455997320,3.99123668,2505.5,2505.4,0.38193057]
[1747455998124,4.36423739,2505.5,2505.4,0.38193057]
[1747455998322,4.36423739,2505.5,2505.4,8.14893057]
[1747456000239,0.37300071,2505.5,2505.4,8.14893057]
[1747456000443,4.36422002,2505.5,2505.4,8.14893057]
[1747456002141,4.36422002,2505.5,2505.4,0.38193057]
[1747456002458,4.36422002,2505.5,2505.4,8.08293057]
[1747456006753,5.96984824,2505.5,2505.4,8.08293057]
[1747456007946,5.96984824,2505.5,2505.4,0.38193057]
[1747456008152,5.96984824,2505.5,2505.4,8.08193057]
[1747456009653,4.36422002,2505.5,2505.4,8.08193057]
[1747456010037,5.16002002,2505.5,2505.4,0.38193057]
[1747456010218,5.16002002,2505.5,2505.4,8.08193057]
[1747456011846,5.16002002,2505.5,2505.4,7.7]
[1747456013632,6.84522824,2505.5,2505.4,7.7]
[1747456013929,4.36422002,2505.5,2505.4,7.7]
[1747456014131,12.06422002,2505.5,2505.4,7.7]
[1747456016946,4.36422002,2505.5,2505.4,7.7]
[1747456017664,4.36422002,2505.5,2505.4,8.08195982]
[1747456018768,4.36422002,2505.5,2505.4,10.51364649]
[1747456018769,0.37300071,2505.5,2505.4,10.51364649]
[1747456019071,0.37300071,2505.5,2505.4,15.55638976]
[1747456019644,0.37300071,2505.5,2505.4,23.25638976]
[1747456019864,0.37300071,2505.8,2505.6,0.76]
[1747456020042,4.36382565,2505.8,2505.6,0.76]
[1747456020253,4.36382565,2505.8,2505.7,7.701]
[1747456021060,0.37300071,2505.8,2505.7,8.08295982]
[1747456021260,0.37300071,2505.8,2505.7,9.5172558]
[1747456021560,3.99033982,2506.1,2505.7,9.5172558]
[1747456021770,3.99016268,2506.2,2505.7,9.5172558]
[1747456021971,3.99026375,2506.1,2505.7,9.5172558]
[1747456022153,3.99044867,2506.0,2505.7,9.5172558]
[1747456022371,0.37296737,2505.9,2505.8,1.02772558]
[1747456022682,0.37296737,2505.9,2505.8,1.88717138]
[1747456022881,0.37296737,2505.9,2505.8,2.47707582]
[1747456023184,0.37296737,2506.1,2505.9,1.3666]
[1747456023481,0.37296737,2506.1,2505.8,6.46778502]
[1747456023482,0.37296737,2506.1,2506.0,23.71570965]
[1747456023689,0.37296737,2506.1,2506.0,20.2010871]
[1747456023996,0.37296737,2506.1,2506.0,24.19151008]
[1747456024181,0.37296737,2506.4,2506.3,13.35654533]
[1747456024387,0.37296737,2506.4,2506.3,30.92859665]
[1747456024569,0.37296737,2506.4,2506.3,26.93865132]
[1747456024882,0.37296737,2506.4,2506.3,11.62161114]
[1747456025184,0.37296737,2506.4,2506.3,10.49992447]
[1747456025397,3.989308,2506.8,2506.4,0.55]
[1747456025699,3.98889215,2507.0,2506.4,1.43429598]
[1747456025874,3.98896627,2507.0,2506.7,0.7596]
[1747456026064,3.98899038,2506.9,2506.8,7.7]
[1747456028068,3.98885328,2507.0,2506.5,1.3096]
[1747456028069,3.9894678,2506.6,2506.5,1.3096]
[1747456028263,3.98962696,2506.5,2506.4,1.90982332]
[1747456028570,3.98962696,2506.5,2506.4,8.17452734]
[1747456028886,3.98962696,2506.5,2506.4,0.47552734]
[1747456029267,4.78753828,2506.5,2506.4,8.17352734]
[1747456029463,5.60113828,2506.5,2506.4,8.17352734]
[1747456029993,3.98962696,2506.5,2506.4,7.698]
[1747456030294,3.99026375,2506.1,2506.0,17.787]
[1747456030594,4.8029925,2506.7,2506.0,24.935]
[1747456030893,3.98985506,2506.4,2506.0,27.50446]
[1747456031086,11.6964678,2506.6,2506.1,0.38003596]
[1747456031402,3.99010454,2506.2,2506.1,0.38003596]
[1747456033367,3.99010454,2506.2,2506.1,8.08603596]
[1747456033567,3.99010454,2506.2,2506.1,7.706]
[1747456034096,7.699,2506.6,2506.1,9.0765]
[1747456034300,3.99010454,2506.2,2506.1,8.5265]
[1747456034478,11.68859639,2506.6,2506.1,11.21501867]
[1747456034668,3.9898657,2506.4,2506.1,11.21501867]
[1747456035911,3.99010454,2506.2,2506.1,8.5265]
[1747456036596,3.99010454,2506.2,2506.1,8.90652747]
[1747456036791,3.98988927,2506.4,2506.1,8.90652747]
[1747456036993,3.98992044,2506.4,2506.1,8.90652747]
[1747456037494,3.98986779,2506.4,2506.1,8.90652747]
[1747456039808,3.98997074,2506.3,2506.1,8.90652747]
[1747456042105,3.98997074,2506.3,2506.1,8.08602747]
[1747456042313,3.99010454,2506.2,2506.1,0.38002747]
[1747456042605,3.99010454,2506.2,2506.1,8.08602747]
[1747456042912,3.99010454,2506.2,2506.1,0.38002747]
[1747456043106,4.86817207,2506.2,2506.1,0.38002747]
[1747456043304,4.86817207,2506.2,2506.1,8.08602747]
[1747456043513,4.86817207,2506.2,2506.1,7.706]
[1747456047320,3.99002738,2506.3,2506.1,7.706]
[1747456047645,0.8204,2506.7,2506.2,0.55]
[1747456047791,3.98954221,2506.6,2506.2,0.55]
[1747456048330,3.98964158,2506.5,2506.3,0.38123762]
[1747456048485,3.98954909,2506.6,2506.3,1.48462278]
[1747456048826,3.98964606,2506.5,2506.3,1.48462278]
[1747456048999,3.98964606,2506.5,2506.4,0.38123762]
[1747456049404,3.98955306,2506.6,2506.5,0.7994]
[1747456049604,3.98955306,2506.6,2506.5,8.5054]
[1747456049831,3.98939046,2506.7,2506.5,8.5054]
[1747456050135,7.696,2507.3,2506.6,0.93123762]
[1747456050337,3.98900098,2506.9,2506.6,0.93123762]
[1747456051536,3.98900098,2506.9,2506.7,0.38123762]
[1747456051756,3.98900098,2506.9,2506.7,1.53697028]
[1747456052109,3.98882279,2507.1,2506.8,0.55]
[1747456052416,3.98883476,2507.0,2506.8,0.55]
[1747456053042,3.98883476,2507.0,2506.9,0.38123762]
[1747456054352,3.98874451,2507.1,2506.9,0.38123762]
[1747456054536,3.98874451,2507.1,2507.0,8.08623762]
[1747456056113,3.98874451,2507.1,2507.0,0.38123762]
[1747456056317,3.98874451,2507.1,2507.0,8.08623762]
[1747456056727,3.98856059,2507.2,2507.0,8.08623762]
[1747456056922,3.98856059,2507.2,2507.0,8.91943762]
[1747456056923,3.98867217,2507.1,2507.0,8.91943762]
[1747456057351,3.98867217,2507.1,2507.0,8.08623762]
[1747456058153,4.80217217,2507.1,2507.0,0.38123762]
[1747456058449,5.59989159,2507.1,2507.0,8.08623762]
[1747456058638,3.98867217,2507.1,2507.0,8.08623762]
[1747456059053,3.98841806,2507.3,2507.0,8.08623762]
[1747456059358,3.98854044,2507.2,2507.0,8.91943762]
[1747456059652,3.98854044,2507.2,2507.1,17.228]
[1747456059859,0.005,2507.5,2507.2,0.55]
[1747456060159,0.005,2507.5,2507.4,0.8332]
[1747456060379,3.99303589,2507.5,2507.4,0.8332]
[1747456061070,3.99303589,2507.5,2507.4,1.21443762]
[1747456061276,0.005,2507.5,2507.4,1.21443762]
[1747456061662,0.005,2507.5,2507.4,1.76443762]
[1747456061862,0.005,2507.5,2507.4,2.52132433]
[1747456062065,0.005,2507.5,2507.4,1.76443762]
[1747456062385,3.99303589,2507.5,2507.4,0.93123762]
[1747456062678,3.99303589,2507.5,2507.4,0.38123762]
[1747456063041,0.005,2507.5,2507.4,0.93123762]
[1747456063663,3.99303589,2507.5,2507.4,0.93123762]
[1747456063977,3.99303589,2507.5,2507.4,1.28583376]
[1747456064272,3.99303589,2507.5,2507.4,0.73583376]
[1747456065252,0.005,2507.5,2507.4,8.62423762]
[1747456065847,3.99303589,2507.5,2507.4,8.62423762]
[1747456068193,4.77953589,2507.5,2507.4,8.07323762]
[1747456068479,5.6567798,2507.5,2507.4,0.38123762]
[1747456069547,3.98851308,2507.2,2507.1,24.92]
[1747456071670,4.79111308,2507.2,2507.1,24.92]
[1747456072279,4.79111308,2507.2,2507.1,17.228]
[1747456072483,12.79111308,2507.2,2507.1,24.92]
[1747456072682,15.23816022,2507.2,2507.1,24.92]
[1747456073683,15.23816022,2507.2,2507.1,17.228]
[1747456074043,22.92916022,2507.2,2507.1,17.228]
[1747456074449,15.23816022,2507.2,2507.1,17.228]
[1747456074685,22.92916022,2507.2,2507.1,17.228]
[1747456076047,22.93016022,2507.2,2507.1,17.228]
[1747456076687,22.92916022,2507.2,2507.1,17.228]
[1747456079784,3.98883127,2507.0,2506.9,7.693]
[1747456079986,3.98978614,2506.4,2506.3,17.70152734]
[1747456080154,3.98978614,2506.4,2506.3,24.919]
[1747456081385,12.74678614,2506.4,2506.3,17.226]
[1747456081791,3.99010454,2506.2,2506.0,0.47552734]
[1747456081993,12.43926375,2506.1,2506.0,8.16852734]
[1747456082563,20.43926375,2506.1,2506.0,8.16852734]
[1747456082759,22.48119765,2506.1,2506.0,7.693]
[1747456084669,3.99121931,2505.5,2505.4,17.227]
[1747456084860,11.68321931,2505.5,2505.4,24.921]
[1747456085063,11.68321931,2505.5,2505.4,17.227]
[1747456085260,11.68321931,2505.5,2505.4,24.921]
[1747456086393,11.68321931,2505.5,2505.4,24.922]
[1747456087596,3.99121931,2505.5,2505.4,24.922]
[1747456089978,11.68521931,2505.5,2505.4,24.922]
[1747456090411,3.99121931,2505.5,2505.4,24.922]
[1747456091887,12.48344957,2505.5,2505.4,24.922]
[1747456092099,11.68521931,2505.5,2505.4,24.922]
[1747456092308,3.99121931,2505.5,2505.4,24.922]
[1747456092519,11.68421931,2505.5,2505.4,24.922]
[1747456093417,3.99078173,2505.8,2505.4,24.922]
[1747456093719,3.99106615,2505.6,2505.4,25.681]
[1747456093918,3.99062421,2505.9,2505.5,2.6802125]
[1747456094131,3.99065345,2505.9,2505.6,0.55]
[1747456094292,5.1107358,2506.6,2505.5,2.72012066]
[1747456094293,3.99003196,2506.3,2505.8,4.54071843]
[1747456094616,3.99027215,2506.1,2506.0,0.759]
[1747456094918,3.99027215,2506.1,2506.0,1.309]
[1747456094919,3.99026375,2506.1,2506.0,1.309]
[1747456095095,7.694,2506.4,2506.0,2.06797414]
[1747456095434,3.98972723,2506.5,2506.1,0.55]
[1747456095632,3.98952757,2506.6,2506.1,4.54023744]
[1747456095834,3.98963938,2506.5,2506.3,0.55]
[1747456096034,3.98954754,2506.6,2506.4,7.694]
[1747456097523,3.98962696,2506.5,2506.4,7.694]
[1747456098630,3.98954876,2506.6,2506.4,8.59811]
[1747456099017,3.98962696,2506.5,2506.4,9.14811]
[1747456099741,7.693,2506.8,2506.4,9.14811]
[1747456099742,11.68216397,2506.8,2506.4,9.14811]
[1747456100034,3.98962696,2506.5,2506.4,9.14811]
[1747456100840,3.98930865,2506.7,2506.4,9.14811]
[1747456101626,3.98950084,2506.6,2506.4,9.14811]
[1747456101931,3.98933302,2506.7,2506.5,1.464811]
[1747456102336,3.98923025,2506.8,2506.6,0.8027]
[1747456104240,0.7787,2507.3,2506.6,0.8027]
[1747456104241,3.98904602,2506.9,2506.6,0.8027]
[1747456104446,3.98904602,2506.9,2506.6,2.5681015]
[1747456104745,3.98918494,2506.8,2506.6,2.5681015]
[1747456105110,3.98895826,2507.0,2506.7,0.55]
[1747456105331,3.98869997,2507.1,2506.7,0.55]
[1747456105535,3.98896402,2507.0,2506.7,0.55]
[1747456105736,3.98896402,2507.0,2506.9,0.55]
[1747456105931,3.98859458,2507.2,2506.9,8.242]
[1747456106150,3.98859458,2507.2,2507.0,0.769]
[1747456108136,3.98837127,2507.3,2507.0,0.769]
[1747456108314,3.98837127,2507.3,2507.1,0.55]
[1747456108518,3.98851308,2507.2,2507.1,0.55]
[1747456108844,3.98820218,2507.4,2507.1,0.55]
[1747456109939,3.99313013,2507.5,2507.1,0.55]
[1747456110320,0.005,2507.5,2507.2,0.769]
[1747456110526,0.005,2507.5,2507.4,0.55]
[1747456110728,0.005,2507.5,2507.4,25.468]
[1747456111455,0.005,2507.5,2507.4,26.2555]
[1747456112855,3.99303589,2507.5,2507.4,26.2555]
[1747456113944,0.005,2507.5,2507.4,26.2555]
[1747456114349,0.005,2507.5,2507.4,28.40495668]
[1747456116744,3.99303589,2507.5,2507.4,24.916]
[1747456117132,3.99303589,2507.5,2507.4,17.227]
[1747456117340,3.99303589,2507.5,2507.4,24.916]
[1747456117933,11.68003589,2507.5,2507.4,24.916]
[1747456118869,12.45433589,2507.5,2507.4,24.916]
[1747456119045,14.09905942,2507.5,2507.4,24.916]
[1747456119658,14.09905942,2507.5,2507.4,17.227]
[1747456120947,14.09805942,2507.5,2507.4,17.227]
[1747456122174,6.41205942,2507.5,2507.4,17.227]
[1747456122470,5.63775942,2507.5,2507.4,17.227]
[1747456122674,11.67903589,2507.5,2507.4,17.227]
[1747456124140,3.99303589,2507.5,2507.4,17.227]
[1747456124341,12.49483589,2507.5,2507.4,17.227]
[1747456126001,20.49483589,2507.5,2507.4,17.227]
[1747456126185,3.98930865,2506.7,2506.6,17.69952734]
[1747456126502,3.98930865,2506.7,2506.6,25.93552734]
[1747456126804,3.98930865,2506.7,2506.6,25.46]
[1747456127487,8.8064,2507.4,2506.7,0.55]
[1747456127656,3.9887698,2507.1,2506.8,8.5178]
[1747456127986,3.9888671,2507.0,2506.8,8.5178]
[1747456128183,3.9888671,2507.0,2506.8,0.8318]
[1747456128364,3.98899038,2506.9,2506.8,0.55]
[1747456128562,3.98899038,2506.9,2506.8,8.236]
[1747456129482,3.98899038,2506.9,2506.8,7.686]
[1747456129980,3.98899038,2506.9,2506.8,8.06721348]
[1747456131692,3.98899038,2506.9,2506.8,7.686]
[1747456134387,11.67399038,2506.9,2506.8,7.686]
[1747456136563,0.005,2507.5,2506.8,7.686]
[1747456136791,3.98899038,2506.9,2506.8,8.492]
[1747456137590,3.98899038,2506.9,2506.8,0.38128484]
[1747456137761,3.98899038,2506.9,2506.8,8.06828484]
[1747456138688,3.98899038,2506.9,2506.8,7.687]
[1747456139396,11.67399038,2506.9,2506.8,7.687]
[1747456140597,3.98930865,2506.7,2506.6,17.224]
[1747456140899,3.98930865,2506.7,2506.6,24.911]
[1747456142108,3.98899038,2506.9,2506.6,25.29232014]
[1747456142273,3.98899038,2506.9,2506.6,27.91157287]
[1747456144118,3.98899038,2506.9,2506.7,0.38132014]
[1747456144786,3.98914951,2506.8,2506.7,0.38132014]
[1747456145999,3.98914951,2506.8,2506.7,8.06832014]
[1747456150017,0.7812,2507.6,2506.7,8.87312014]
[1747456150180,3.98897356,2507.0,2506.7,3.76290489]
[1747456150385,3.98899038,2506.9,2506.8,7.688]
[1747456150788,3.98899038,2506.9,2506.8,8.06932014]
[1747456150987,3.98899038,2506.9,2506.8,0.38132014]
[1747456151286,4.75019038,2506.9,2506.8,8.06932014]
[1747456153101,4.75019038,2506.9,2506.8,8.06432014]
[1747456154732,12.43219038,2506.9,2506.8,0.38132014]
[1747456154892,13.30609534,2506.9,2506.8,8.06432014]
[1747456156024,13.30609534,2506.9,2506.8,7.683]
[1747456157324,5.62409534,2506.9,2506.8,7.683]
[1747456157645,3.98930865,2506.7,2506.6,17.224]
[1747456157840,3.98930865,2506.7,2506.6,24.907]
[1747456158342,3.98930865,2506.7,2506.6,25.28936213]
[1747456161746,3.98921854,2506.8,2506.6,25.28936213]
[1747456162447,11.67105611,2506.9,2506.6,25.28936213]
[1747456162756,3.98930865,2506.7,2506.6,25.28936213]
[1747456163053,4.36268995,2506.7,2506.6,25.28936213]
[1747456163832,5.12388995,2506.7,2506.6,25.28936213]
[1747456164038,6.80329595,2506.7,2506.6,25.28936213]
[1747456164239,5.12388995,2506.7,2506.6,25.28936213]
[1747456164438,4.36268995,2506.7,2506.6,25.28936213]
[1747456166268,0.3733813,2506.7,2506.6,26.07946213]
[1747456166563,4.36268995,2506.7,2506.6,26.07946213]
[1747456166770,4.36268995,2506.7,2506.6,25.28936213]
[1747456169976,5.14968995,2506.7,2506.6,25.28936213]
[1747456170464,6.83157598,2506.7,2506.6,0.38236213]
[1747456170674,7.95150025,2506.7,2506.6,0.38236213]
[1747456173270,3.9894678,2506.6,2506.5,0.47552734]
[1747456173872,4.3628491,2506.6,2506.5,0.47552734]
[1747456174051,5.95586294,2506.6,2506.5,0.47552734]
[1747456174453,3.98978614,2506.4,2506.3,7.683]
[1747456174657,12.48458614,2506.4,2506.3,7.683]
[1747456174975,12.48458614,2506.4,2506.0,0.47552734]
[1747456174976,3.99026375,2506.1,2506.0,0.47552734]
[1747456175138,4.80606375,2506.1,2506.0,0.47552734]
[1747456175341,12.48506375,2506.1,2506.0,0.47552734]
[1747456176082,12.85844505,2506.1,2506.0,0.47552734]
[1747456177286,12.04264505,2506.1,2506.0,0.47552734]
[1747456177687,12.04264505,2506.1,2505.9,7.684]
[1747456177688,3.99042298,2506.0,2505.9,7.684]
[1747456178191,4.36380428,2506.0,2505.9,7.684]
[1747456178957,3.99058222,2505.9,2505.8,17.228]
[1747456179165,3.99058222,2505.9,2505.8,24.912]
[1747456179477,4.36396352,2505.9,2505.8,24.912]
[1747456179890,4.36396352,2505.9,2505.8,17.228]
[1747456180096,5.14126352,2505.9,2505.8,24.913]
[1747456181289,12.04196352,2505.9,2505.8,24.913]
[1747456182395,12.04196352,2505.9,2505.8,17.228]
[1747456182561,12.04196352,2505.9,2505.8,24.913]
[1747456184085,13.72453217,2505.9,2505.8,24.913]
[1747456185797,4.36396352,2505.9,2505.8,24.913]
[1747456185975,12.04196352,2505.9,2505.8,24.913]
[1747456189405,4.36396352,2505.9,2505.8,24.913]
[1747456189607,12.04096352,2505.9,2505.8,24.913]
[1747456190509,4.36396352,2505.9,2505.8,24.913]
[1747456190711,12.04096352,2505.9,2505.8,24.913]
[1747456191008,0.3733813,2505.9,2505.8,24.913]
[1747456191393,3.99045152,2506.0,2505.8,24.913]
[1747456191593,12.0406668,2506.1,2505.8,24.913]
[1747456191594,3.99058222,2505.9,2505.8,24.913]
[1747456191812,3.99051344,2506.0,2505.8,24.913]
[1747456192107,0.3733813,2506.0,2505.9,0.8318]
[1747456192509,0.3733813,2506.0,2505.9,4.82238222]
[1747456192714,0.3733813,2506.0,2505.9,0.8318]
[1747456193010,0.3733813,2506.0,2505.9,1.3818]
[1747456193215,4.36333605,2506.3,2505.9,2.62900667]
[1747456193619,3.99011053,2506.2,2505.9,2.62900667]
[1747456193920,3.99012497,2506.2,2505.9,2.62900667]
[1747456194700,3.99012497,2506.2,2506.0,0.38174003]
[1747456194924,3.99012497,2506.2,2506.0,2.95546003]
[1747456195119,3.99026375,2506.1,2506.0,2.95546003]
[1747456195417,3.99019117,2506.2,2506.0,0.38174003]
[1747456195641,0.3733813,2506.3,2506.0,0.38174003]
[1747456195844,0.3733813,2506.3,2506.1,1.3708]
[1747456196003,0.3733813,2506.4,2506.1,1.3708]
[1747456196199,0.3733813,2506.4,2506.1,1.75254003]
[1747456196405,0.3733813,2506.4,2506.2,0.22280674]
[1747456196634,0.3733813,2506.4,2506.3,7.679]
[1747456197447,4.36316744,2506.4,2506.3,7.679]
[1747456197802,4.36316744,2506.4,2506.3,8.06074003]
[1747456198437,4.36316744,2506.4,2506.3,8.05974003]
[1747456199143,4.36316744,2506.4,2506.3,0.38174003]
[1747456199144,5.28064734,2506.4,2506.3,0.38174003]
[1747456199453,5.28064734,2506.4,2506.3,8.05974003]
[1747456199655,6.10264734,2506.4,2506.3,0.38174003]
[1747456199950,3.99010454,2506.2,2506.1,7.678]
[1747456200306,11.66410454,2506.2,2506.1,7.678]
[1747456200540,3.99010454,2506.2,2506.1,7.678]
[1747456200742,12.03748584,2506.2,2506.1,7.678]
[1747456201135,21.92481011,2506.2,2506.1,7.678]
[1747456201332,21.92481011,2506.2,2505.8,17.70352734]
[1747456201333,3.99058222,2505.9,2505.8,17.70352734]
[1747456201514,4.75798222,2505.9,2505.8,17.70352734]
[1747456201706,4.75798222,2505.9,2505.8,0.47552734]
[1747456201911,5.13136352,2505.9,2505.8,0.47552734]
[1747456202658,4.36396352,2505.9,2505.8,0.47552734]
[1747456202828,4.36396352,2505.9,2505.6,7.678]
[1747456202829,3.99090074,2505.7,2505.6,7.678]
[1747456203011,3.99082212,2505.8,2505.6,8.52779]
[1747456203208,0.3733813,2505.9,2505.6,8.52779]
[1747456203411,0.3733813,2505.7,2505.6,9.07779]
[1747456203957,0.3733813,2505.7,2505.6,9.4594598]
[1747456204131,0.3733813,2505.8,2505.6,9.4594598]
[1747456204455,4.36412277,2505.8,2505.7,1.02793598]
[1747456205644,4.36412277,2505.8,2505.7,1.40960578]
[1747456206550,0.3733813,2505.8,2505.7,1.40960578]
[1747456206750,4.36412277,2505.8,2505.7,1.40960578]
[1747456207452,4.36412277,2505.8,2505.7,8.0606698]
[1747456207973,0.3733813,2505.8,2505.7,8.0606698]
[1747456208153,0.3733813,2505.8,2505.7,9.3991698]
[1747456208323,0.3733813,2505.8,2505.7,13.39007054]
[1747456208522,3.99012067,2506.2,2505.8,0.55]
[1747456208854,3.99012067,2506.2,2505.9,17.6146698]